Workbook

Sheet Pracownik
B5: Treść pytania | C5: Odpowiedź
B7: Proszę wpisać rok urodzenia | C7: 1970 | D7: =IF(C7="",0,1) -> 1 | E7: =2024-C7 -> 54 | F7: Tak
B8: Czy przyjął Pan/przyjeła Pani szczepienia przeciw: | F8: Nie
B9: Grypie (w tym sezonie) | C9: Nie | D9: =IF(C9="",0,1) -> 1 | F9: Nie wiem
B10: Covid-19 | C10: Nie | D10: =IF(C10="",0,1) -> 1
B11: Zakażeniom wirusem syncytialnym układu oddechowego (RSV) | C11: Nie | D11: =IF(C11="",0,1) -> 1
B12: Inwazyjnym zakażeniom Streptococcus pneumoniae (Pneumokoki) | C12: Nie | D12: =IF(C12="",0,1) -> 1
B13: Inwazyjnym zakażeniom Neisseria meningitidis (Meningokoki) | C13: Nie | D13: 1
B14: Błonicy, tężcowi, krztuścowi (Tdap) (w ciągu ostatnich 10 lat) | C14: Nie | D14: =IF(C14="",0,1) -> 1
B15: Ospie wietrznej | C15: Nie | D15: =IF(C15="",0,1) -> 1
B16: Półpaścowi | C16: Nie | D16: =IF(C16="",0,1) -> 1
B17: Ludzkiemu wirusowi brodawcza (HPV) | C17: Nie | D17: =IF(C17="",0,1) -> 1
B18: Odrze, śwince, różyczce (MMR) | C18: Nie | D18: =IF(C18="",0,1) -> 1
B19: Kleszczowemu zapaleniu mózgu (KZM) | C19: Nie | D19: 1
B20: Wirusowemu zapaleniu wątroby typu A (WZW typu A/HAV) | C20: Nie | D20: =IF(C20="",0,1) -> 1
B21: Wirusowemu zapaleniu wątroby typu B (WZW typu B/HBV) | C21: Nie | D21: =IF(C21="",0,1) -> 1
B22: Czy przebył Pan/przebyła Pani zakażenie:
B23: Ospą wietrzną | C23: Nie wiem | D23: =IF(C23="",0,1) -> 1
B24: Odrą | C24: Nie wiem | D24: =IF(C24="",0,1) -> 1
B25: Różyczką | C25: Nie wiem | D25: 1
B26: Czy aktualnie choruje Pan/Pani lub dotyczy Pana/Pani:
B27: Cukrzyca | C27: Tak | D27: 1
B28: Choroba układu oddechowego (np. Astma, POChP) | C28: Tak | D28: 1
B29: Choroba układu krążenia | C29: Tak | D29: 1
B30: Choroba nerek | C30: Tak | D30: 1
B31: Choroba wątroby | C31: Tak | D31: 1
B32: Zaburzenia odporności (wrodzone lub nabyte niedobory odporności) | C32: Tak | D32: 1
B33: Leczenie immunosupresyjne | C33: Tak | D33: 1
B35: Czy często podejmuję Pan/Pani aktywność na swieżym powietrzu, szczególnie w lesie? | C35: Tak | D35: 1
B50: szczepienie przeciw | C50: Czy zalecane | D50: Szczepienie | E50: Wiek | F50: Choroba | G50: Stwierdzenie
B51: Grypie | C51: =IF(D51=FALSE,"Tak","Nie") -> Tak | D51: =OR(C9="Tak") -> FALSE
B52: Covid-19 | C52: =IF(D52=FALSE,"Tak","Nie") -> Tak | D52: =OR(C10="Tak") -> FALSE
B53: Zakażeniom wirusem syncytialnym układu oddechowego (RSV) | C53: =IF(AND(D53=FALSE,E53=TRUE),"Tak","Nie") -> Nie | D53: =OR(C11="Tak") -> FALSE | E53: =IF(E7<60,FALSE,TRUE) -> FALSE
B54: Inwazyjnym zakażeniom Streptococcus pneumoniae (Pneumokoki) | C54: =IF(AND(D54=FALSE,OR(E54=TRUE,F54=TRUE)),"Tak","Nie") -> Tak | D54: =OR(C12="Tak") -> FALSE | E54: =IF(E7<65,FALSE,TRUE) -> FALSE | F54: =OR(C27="Tak",C28="Tak",C29="Tak",C30="Tak",C31="Tak",C32="Tak",C33="Tak") -> TRUE
B55: Inwazyjnym zakażeniom Streptococcus pneumoniae (Pneumokoki) | C55: =IF(AND(D55=FALSE,E55=TRUE,C54="Nie"),"Tak","Nie") -> Nie | D55: =OR(C12="Tak") -> FALSE | E55: =IF(AND(E7<65,E7>49),TRUE,FALSE) -> TRUE
B56: Inwazyjnym zakażeniom Neisseria meningitidis (Meningokoki) | C56: =IF(AND(D56=FALSE,OR(F56=TRUE)),"Tak","Nie") -> Tak | D56: =OR(C13="Tak") -> FALSE | F56: =OR(C30="Tak",C31="Tak",C32="Tak",C33="Tak") -> TRUE
B57: Błonicy, tężcowi, krztuścowi (Tdap) | C57: =IF(D57=FALSE,"Tak","Nie") -> Tak | D57: =OR(C14="Tak") -> FALSE
B58: Ospie wietrznej | C58: =IF(AND(D58=FALSE,C23="Nie"),"Tak","Nie") -> Nie | D58: =OR(C15="Tak",C23="Tak") -> FALSE
B59: Półpaścowi | C59: =IF(AND(D59=FALSE,OR(E59=TRUE,G59=TRUE),F59=TRUE),"Tak","Nie") -> Tak | D59: =OR(C16="Tak") -> FALSE | E59: =IF(E7<50,FALSE,TRUE) -> TRUE | F59: =OR(C23="Tak",C23="Nie wiem") -> TRUE | G59: =OR(C32="Tak",C29="Tak",C28="Tak",C30="Tak",C27="Tak",C31="Tak",C33="Tak") -> TRUE
B60: Ludzkiemu wirusowi brodawcza (HPV) | C60: =IF(AND(D60=FALSE,E60=TRUE),"Tak","Nie") -> Nie | D60: FALSE | E60: =IF(E7>49,FALSE,TRUE) -> FALSE
B61: Odrze, śwince, różyczce (MMR) | C61: =IF(OR(AND(D61=FALSE,E61=TRUE,F61=FALSE),C18="Nie"),"Tak","Nie") -> Tak | D61: FALSE | E61: =IF(C7<2003,TRUE,FALSE) -> TRUE | F61: =IF(OR(C24="Tak",C25="Tak"),TRUE,FALSE) -> FALSE
B62: Kleszczowemu zapaleniu mózgu (KZM) | C62: =IF(AND(D62=FALSE,OR(E62=TRUE,F62=TRUE,G62=TRUE)),"Tak","Nie") -> Tak | D62: FALSE | G62: =IF(C35="Tak",TRUE,FALSE) -> TRUE
B63: Wirusowemu zapaleniu wątroby typu A (WZW typu A/HAV) | C63: =IF(AND(D63=FALSE,F63=TRUE),"Tak","Nie") -> Tak | D63: FALSE | F63: =OR(C31="Tak") -> TRUE
B64: Wirusowemu zapaleniu wątroby typu B (WZW typu B) | C64: =IF(OR(AND(D64=FALSE,E64=TRUE),C21="Nie"),"Tak","Nie") -> Tak | D64: FALSE | E64: =IF(C7<1994,TRUE,FALSE) -> TRUE
B65: WZW typu A i WZW typu B | C65: =IF(AND(C63="Tak",C64="Tak"), "Tak","Nie") -> Tak
B89: Szczepienie przeciw | C89: Schemat szczepienia | D89: Możliwość refundacji | E89: Więcej informacji na temat szczepienia i choroby
B90: =IF($C51="Tak",VLOOKUP($B51,$B$114:$F$126,1,FALSE),) -> Grypie | C90: 1 dawka na sezon | D90: Refundowane w 50% dla wszystkich oraz bezpłatne dla: - kobiet w ciąży, - osób od 65 roku życia | E90: https://szczepienia.pzh.gov.pl/szczepionki/grypa/
B91: Covid-19 | C91: 1 lub 2 dawki (zależy od rodzaju szczepionki) + dawki przypominające | D91: Refundowana dla wszystkich | E91: https://szczepienia.pzh.gov.pl/szczepionki/covid-19-2/
B92: 0 | C92: 1 dawka | D92: Brak refundacji dla osób dorosłych | E92: https://szczepienia.pzh.gov.pl/pierwsza-szczepionka-przeciw-rsv/
B93: =IF($C54="Tak",VLOOKUP($B54,$B$114:$F$126,1,FALSE),) -> Inwazyjnym zakażeniom Streptococcus pneumoniae (Pneumokoki) | C93: 1 dawka szczepionki PCV-13 + 1 dawka szczepionki PPSV-23 (w odstępie ≥8 tyg.) lub 1 dawka szczepionki PCV-20 | D93: Refundacja 100% szczepionki PCV13 dla osób od 65 r.ż. z grup ryzyka | E93: https://szczepienia.pzh.gov.pl/szczepionki/pneumokoki/
B94: 0 | C94: 1 dawka | D94: Istnieje możliwość dofinansowania w ramach programów samorządowych | E94: https://szczepienia.pzh.gov.pl/szczepionki/pneumokoki/
B95: Inwazyjnym zakażeniom Neisseria meningitidis (Meningokoki) | C95: MenB: 2 dawki z odstępem min. 1 mies. MenACWY: 1 dawka | D95: Istnieje możliwość dofinansowania w ramach programów samorządowych | E95: https://szczepienia.pzh.gov.pl/szczepionki/meningokoki/
B96: Błonicy, tężcowi, krztuścowi (Tdap) | C96: 1 dawka co 10 lat | D96: Brak refundacji dla osób dorosłych | E96: https://szczepienia.pzh.gov.pl/szczepionki/blonica/?strona=4#jakie-rodzaje-szczepionek-przeciw-blonicy-sa-dostepne-w-polsce
B97: 0 | C97: 2 dawki z odstępem min. 6 tyg. | D97: Brak refundacji dla osób dorosłych | E97: https://szczepienia.pzh.gov.pl/szczepionki/ospa-wietrzna/
B98: Półpaścowi | C98: 2 dawki z odstępem 2 mies. | D98: Refundacja 50% dla osób od 65 lat z grypy podwyższonego ryzyka | E98: https://szczepienia.pzh.gov.pl/szczepionki/polpasiec/
B99: 0 | C99: 3 dawki (0, 1, 6 mies.) | D99: Refundacja 50% dla osób powyżej 18 r.ż. | E99: https://szczepienia.pzh.gov.pl/szczepionki/hpv/
B100: Odrze, śwince, różyczce (MMR) | C100: 1 dawka (druga dawka zgodnie z oficjalnymi zaleceniami) | D100: Brak refundacji dla osób dorosłych | E100: https://szczepienia.pzh.gov.pl/szczepionki/odra/
B101: Kleszczowemu zapaleniu mózgu (KZM) | C101: 3 dawki + dawki przypominające co 3-5 lat | D101: Istnieje możliwość dofinansowania w ramach programów samorządowych | E101: https://szczepienia.pzh.gov.pl/szczepionki/kleszczowe-zapalenie-mozgu/
B102: =IF(AND($C63="Tak",C64="Nie"),VLOOKUP($B63,$B$114:$F$126,1,FALSE),) -> 0 | C102: 1 dawka + 1 dawka przypominająca po 6-12 mies. | D102: Brak refundacji dla osób dorosłych | E102: https://szczepienia.pzh.gov.pl/szczepionki/wzw-a/
B103: =IF(AND($C64="Tak",C63="Nie"),VLOOKUP($B64,$B$114:$F$126,1,FALSE),) -> 0 | C103: 3 dawki (0, 1, 6 mies.) | D103: Istnieje możliwość dofinansowania w ramach programów samorządowych | E103: https://szczepienia.pzh.gov.pl/szczepionki/wzw-b/
B104: =IF($C65="Tak",VLOOKUP($B65,$B$114:$F$127,1,FALSE),) -> WZW typu A i WZW typu B | C104: 3 dawki (0, 1, 6 mies.) | D104: Brak refundacji dla osób dorosłych | E104: https://szczepienia.pzh.gov.pl/szczepionki/wzw-a/
B112: Bibliografia
B113: Szczepienie przeciw | C113: Schemat szczepienia | D113: Koszt szczepienia | E113: Możliwość refundacji
B114: Covid-19 | C114: ChPL | D114: https://www.gov.pl/web/psse-szczecin/szczepienia-przeciw-covid-19-w-sezonie-20232024
B115: Grypie | C115: ChPL | D115: https://www.mp.pl/pacjent/grypa/wiadomosci/278816,szczepienie-przeciwko-grypie-cena
B116: Inwazyjnym zakażeniom Neisseria meningitidis (Meningokoki) | C116: ChPL | D116: BASiW: Program szczepień ochronnych przeciwko meningokokom typu C wywołujących sepsę realizowany w 2022 roku przez Starostwo Powiatowe w Myślenicach
B117: Inwazyjnym zakażeniom Streptococcus pneumoniae (Pneumokoki) | C117: ChPL/Kalendarz szczepień | D117: BASiW: PROGRAM PROFILAKTYKI ZAKAŻEŃ PNEUMOKOKOWYCH W OPARCIU O SZCZEPIENIA PRZECIWKO PNEUMOKOKOM W WOJEWÓDZTWIE LUBELSKIM W LATACH 2016-2021
B118: Kleszczowemu zapaleniu mózgu (KZM) | C118: ChPL | D118: BASiW: PROGRAM POLITYKI ZDROWOTNEJ W ZAKRESIE SZCZEPIEŃ OCHRONNYCH PRZECIW KLESZCZOWEMU ZAPALENIU MÓZGU DLA MIESZKAŃCÓW POWIATU OLECKIEGO NA LATA 2018 – 2022
B119: Wirusowemu zapaleniu wątroby typu B (WZW typu B) | C119: ChPL | D119: PROGRAM SZCZEPIEŃ PRZECIWKO WZW TYPU B DLA OSÓB CHORYCH PRZEWLEKLE Z WOJEWÓDZTWA ŁÓDZKIEGO
B120: Ospie wietrznej | C120: ChPL | D120: brak refundacji dla dorosłych nie zidentyfikowano programów samorządowych dla dorosłych
B121: Półpaścowi | C121: ChPL | D121: https://www.gov.pl/web/psse-przeworsk/szczepionka-przeciw-polpascowi-objeta-50-refundacja
B122: Zakażeniom wirusem syncytialnym układu oddechowego (RSV) | C122: ChPL | D122: brak refundacji dla dorosłych nie zidentyfikowano programów samorządowych dla dorosłych
B123: Błonicy, tężcowi, krztuścowi (Tdap) | C123: ChPL | D123: brak refundacji dla dorosłych nie zidentyfikowano programów samorządowych dla dorosłych
B124: Odrze, śwince, różyczce (MMR) | C124: ChPL | D124: brak refundacji dla dorosłych nie zidentyfikowano programów samorządowych dla dorosłych
B125: Ludzkiemu wirusowi brodawcza (HPV) | C125: ChPL | D125: Medycyna Praktyczna
B126: Wirusowemu zapaleniu wątroby typu A (WZW typu A/HAV) | C126: ChPL | D126: brak refundacji dla dorosłych nie zidentyfikowano programów samorządowych dla dorosłych
B127: WZW typu A i WZW typu B | C127: ChPL | D127: brak refundacji dla dorosłych nie zidentyfikowano programów samorządowych dla dorosłych

Sheet Pracodawca
B6: Dane wejściowe do uzupełnienia | G6: ="Dane dotyczące "&VLOOKUP(C8,B58:C65,2,FALSE) -> Dane dotyczące Półpaśca
B7: Parametr | C7: Wartość | G7: Parametr | H7: Wartość | I7: Źródło
B8: Wybór jednostki chorobowej | C8: Półpasiec | D8: =IF(C8="",0,1) -> 1 | G8: Średni koszt szczepionki dla 1 pracownika | H8: =VLOOKUP(C$8,B$56:I$65,4,FALSE) -> 1502.12 | I8: Medycyna Praktyczna/gdzie po lek
B9: % dofinansowania szczepień przez pracodawcę | C9: 1 | D9: =IF(C9="",0,1) -> 1 | G9: Dodatkowe koszty zaszczepienia pracownika, w tym: | H9: =SUM(H10:H11) -> 43.41
B10: Średnie miesięczne wynagrodzenie pracownika brutto | C10: 10000 | D10: =IF(C10="",0,1) -> 1 | G10: Koszt kwalifikacji lekarskiej | H10: =VLOOKUP(C$8,B$56:I$65,8,FALSE) -> 28.41 | I10: Raport AOTMiT i Rynek Zdrowia
G11: Koszt wykonania szczepienia przez pielęgniarkę | H11: =VLOOKUP(C$8,B$56:J$65,9,FALSE) -> 15 | I11: Raport AOTMiT i Pielęgniarki Info
G12: Skuteczność szczepionki | H12: =VLOOKUP(C$8,B$56:I$65,5,FALSE) -> 0.9435 | I12: Centers for Disease Control and Prevention (CDC)
G13: Współczynnik zakażalności choroby | H13: =VLOOKUP(C$8,B$56:I$65,7,FALSE) -> 0.001 | I13: Medycyna Praktyczna/Badania kliniczne/Szczepienia Info
G14: Średnia długość zwolnienia lekarskiego [dni] | H14: =VLOOKUP(C$8,B$56:I$65,3,FALSE) -> 7.5 | I14: Zakład Ubezpieczeń Społecznych (ZUS)
B43: Szczegółowe wyniki analizy
B44: Parametr | E44: Wartość
B45: Wartość dnia pracy | E45: =C10/(227/12) -> 528.6343612
B46: Prognozowana strata produktywności z powodu choroby (zwolnienia lekarskiego) | E46: =E45*H14 -> 3964.757709
B47: Uniknięta utrata produktywności wynikająca z zaszczepienia pracownika (uwzględniając skuteczność szczepionki) | E47: =E46*H12 -> 3740.748899
B48: Prognozowany koszt szczepienia pracownika dla pracodawcy | E48: =SUM(H9+H8)*C9 -> 1545.53
B49: Prognozowany koszt szczepienia dla pracownika | E49: =SUM(H9+H8)*(1-$C9) -> 0
B50: Oszczędności pracodawcy na pracownika | E50: =E47-E48 -> 2195.218899
B51: Dodatkowe oszczędności pracodawcy wynikające z unikniętej zakażalności pozostałych pracowników | E51: =E46*H13*H12 -> 3.740748899
B57: Szczepienie przeciw | D57: Dł. Zwoln. | E57: koszt szczep. | F57: skuteczn szczep. | G57: Skuteczność szczepionki źródło | H57: Współczynnik zakażalności | I57: Wynagrodzenie lekarza | J57: Wynagrodzenie pielęgniarrki
B58: Grypa | C58: Grypy | D58: 5.414031874 | E58: 65.3675 | F58: =AVERAGE(0.4,0.6) -> 0.5 | G58: Centers for Disease Control and Prevention (40-60%): https://www.cdc.gov/flu/vaccines-work/vaccineeffect.htm | H58: =AVERAGE(1.2,3) -> 2.1 | I58: =170.46*5/60 -> 14.205 | J58: =90*5/60 -> 7.5
B59: Półpasiec | C59: Półpaśca | D59: =7.5 -> 7.5 | E59: 1502.12 | F59: =AVERAGE(0.913,0.974) -> 0.9435 | G59: Centers for Disease Control and Prevention (91,3%-97,4%): (https://www.cdc.gov/vaccines/vpd/shingles/hcp/shingrix/about-vaccine.html) | H59: =0.001 -> 0.001 | I59: =170.46*5/60*2 -> 28.41 | J59: =90*5/60*2 -> 15
B60: Półpasiec z neuralgią popółpaścową | C60: Półpaśca z neuralgią popółpaścową | D60: =11.2+7.5 -> 18.7 | E60: 1502.12 | F60: =AVERAGE(0.913,0.974) -> 0.9435 | G60: Centers for Disease Control and Prevention (91,3%-97,4%): (https://www.cdc.gov/vaccines/vpd/shingles/hcp/shingrix/about-vaccine.html) | H60: =0.001 -> 0.001 | I60: =170.46*5/60*2 -> 28.41 | J60: =90*5/60*2 -> 15
B61: Błonica, Tężec, Krztusiec | C61: Błonicy, Tężcowi, Krztuścowi (Tdap) | D61: 7.352272727 | E61: =AVERAGE(130,120) -> 125 | F61: =AVERAGE(97%,100%,70%) -> 0.89 | G61: CDC (97%; 100%, 70%): Diphtheria, Tetanus, and Whooping Cough Vaccination: https://www.cdc.gov/vaccines/vpd/dtap-tdap-td/public/index.html | H61: 15 | I61: =170.46*5/60 -> 14.205 | J61: =90*5/60 -> 7.5
B62: WZW typu B | C62: WZW typu B | D62: 6.949131254 | E62: =AVERAGE(285,3*61) -> 234 | F62: 0.9 | G62: CDC: ACIP Evidence to Recommendations for a Universal Hepatitis B (HepB) Vaccination Strategy in Adults (90%): https://www.cdc.gov/vaccines/acip/recs/grade/hepb-adults-etr.html | H62: 1.53 | I62: =170.46*5/60*3 -> 42.615 | J62: =90*5/60*3 -> 22.5
B63: WZW typu A | C63: WZW typu A | D63: 18.59541985 | E63: =AVERAGE(2*230,2*195) -> 425 | F63: 1 | G63: Centers for Disease Control and Prevention (100%): https://www.cdc.gov/vaccines/vpd/hepa/hcp/index.html | H63: 1.53 | I63: =170.46*5/60*2 -> 28.41 | J63: =90*5/60*2 -> 15
B64: WZW typu A i WZW typu B | C64: WZW typu A i WZW typu B | D64: 7.2599837 | E64: =3*270 -> 810 | F64: =AVERAGE(F62:F63) -> 0.95 | G64: Wartość Średnia dla WZW typu A i WZW typu B | H64: 1.53 | I64: =170.46*5/60*3 -> 42.615 | J64: =90*5/60*3 -> 22.5
B65: RSV | C65: RSV | D65: 5.270665323 | E65: 1099 | F65: 0.8 | G65: Centers for Disease Control and Prevention (80%): https://www.cdc.gov/vaccines/vpd/rsv/hcp/older-adults-faqs.html | H65: 3 | I65: =170.46*5/60 -> 14.205 | J65: =90*5/60 -> 7.5
D67: https://psz.zus.pl/kategorie/absencja-chorobowa/absencja-chorobowa-z-tytulu-choroby-wlasnej-osob-ubezpieczonych-w-zus | E67: Medycyna Praktyczna / gdzie po lek | H67: Medycyna Praktyczna/ Badania kliniczne | I67: Raport AOTMiT "Analiza kosztów szczepienia przeciwko grypie pracowników medycznych oraz innych osób uprawnionych"
H68: Grypa: https://pubmed.ncbi.nlm.nih.gov/19545404/ | I68: Wycena pracy lekarza POZ: https://www.rynekzdrowia.pl/Finanse-i-zarzadzanie/Na-SOR-184-zl-za-godzine-w-AOS-srednio-248-zl-Lekarze-pokazali-ile-zarabiaja,255620,1.html
H69: Półpasiec: https://www.medonet.pl/zdrowie/pytania-do-lekarzy,czy-polpasiec-jest-zarazliwy-,porada,66235654.html | I69: Wycena pracy pielęgniarki: https://www.pielegniarki.info.pl/aktualnosci/pielegniarki-pracujace-na-kontraktach-wysokosc-stawek-godzinowych#google_vignette
H70: WZW typu B: https://pubmed.ncbi.nlm.nih.gov/21040731/
H71: RSV: https://www.mp.pl/pacjent/choroby-zakazne/choroby/zakazenia-wirusowe/321332,zakazenia-rsv-objawy-leczenie-powiklania
H72: Krztusiec: https://szczepienia.pzh.gov.pl/szczepionki/krztusiec/
H73: WZW typu A: nie odnaleziono danych o zakażalności, ze względu na zbliżoną drogę zakażenia zastosowano współczynnik zakażalności dla WZW typu B
